fUST/lending_fUST_20240410
["ID","MTS","AMOUNT","RATE_DAILY","PERIOD"]
[322086690,1712755833071,-156.54809607,0.00027498,2]
[322086692,1712755833080,-949.40696497,0.00027498,2]
[322086694,1712755833090,-384.22701857,0.00027498,2]
[322086696,1712755833099,-180.056249,0.00027498,2]
[322086698,1712755833110,-506.36214162,0.00027498,2]
[322086699,1712755833120,-278.05881588,0.00027498,2]
[322086701,1712755833129,-201.36868336,0.00027498,2]
[322086702,1712755833138,-156.6305307,0.00027498,2]
[322086703,1712755833147,-212.53862689,0.00027498,2]
[322086736,1712755838783,-3524.24145627,0.00027498,2]
[322086738,1712755838793,-1307.84743807,0.00027498,2]
[322086739,1712755838802,-1931.15529922,0.00027498,2]
[322086742,1712755838812,-364.74168,0.00027498,2]
[322086744,1712755838821,-240.74685142,0.00027498,2]
[322086746,1712755838831,-154.9690062,0.00027498,2]
[322086748,1712755838840,-232.59063765,0.00027498,2]
[322086750,1712755838849,-198.34107085,0.00027498,2]
[322086752,1712755838861,-1485.70436416,0.00027498,2]
[322086753,1712755838870,-1878.80667964,0.00027498,2]
[322086756,1712755838879,-282.81584181,0.00027498,2]
[322086757,1712755838889,-155.21020786,0.00027498,2]
[322086760,1712755838898,-524.8635464,0.00027498,2]
[322086761,1712755838907,-887.0189653,0.00027498,2]
[322086764,1712755838917,-333.044142,0.00027499,2]
[322086766,1712755838926,-1567.39419127,0.00027499,2]
[322086768,1712755838936,-447.50729799,0.00027499,2]
[322086770,1712755838945,-463.61380504,0.00027499,2]
[322086772,1712755838955,-459.76959868,0.00027499,2]
[322086773,1712755838964,-500.0,0.00027499,2]
[322086775,1712755838974,-192.76083212,0.00027499,2]
[322086777,1712755838984,-354.76867878,0.00027499,2]
[322086780,1712755838993,-321.74717806,0.00027499,2]
[322086781,1712755839002,-11076.20790764,0.000275,2]
[322086978,1712755840999,-5027.52501628,0.000275,2]
[322087003,1712755841183,-4542.15177893,0.000275,2]
[322087074,1712755845159,-3014.09969871,0.000275,2]
[322087092,1712755854512,190.55239954,0.00023999,2]
[322087093,1712755857472,8139.51448875,0.00024,2]
[322087094,1712755859161,3556.72650911,0.00023999,2]
[322087095,1712755863427,156.5544083,0.00023999,2]
[322087096,1712755871419,3394.96190754,0.00024,2]
[322087099,1712756011166,942.5658747,0.00023997,2]
[322087100,1712756052935,228.096,0.00023996,2]
[322087101,1712756068789,24900.0,0.00023233,2]
[322087102,1712756176961,200.5898481,0.00023233,2]
[322087103,1712756178772,-192.696713,0.00027397,120]
[322087104,1712756178803,-3266.0,0.00034,120]
[322087105,1712756178901,-1137.16,0.00035,120]
[322087106,1712756178931,-200.0,0.00035136,120]
[322087107,1712756179159,-1954.143287,0.00035616,120]
[322087109,1712756591808,24900.0,0.00023233,2]
[322087111,1712756700601,1454.143287,0.00035616,120]
[322087113,1712756846791,200.0,0.000349,120]
[322087114,1712756846812,800.0,0.000349,120]
[322087115,1712756927675,337.16,0.00035,120]
[322087116,1712756986010,3266.0,0.00034,120]
[322087266,1712757038176,-154.92253873,0.00024464,2]
[322087268,1712757038185,-242.81097436,0.00024464,2]
[322087270,1712757038195,-522.53161349,0.00024464,4]
[322087272,1712757038204,-400.0,0.00024464,2]
[322087274,1712757038213,-154.92253873,0.00024465,2]
[322087276,1712757038224,-601.61804631,0.00024465,2]
[322087278,1712757038232,-154.92253873,0.00024465,2]
[322087280,1712757038241,-158.55609735,0.00024466,2]
[322087282,1712757038250,-1617.59849486,0.00024466,2]
[322087284,1712757038259,-154.92253873,0.00024467,2]
[322087286,1712757038268,-548.90126628,0.00024468,2]
[322087288,1712757038277,-1493.8410274,0.00024469,2]
[322087290,1712757038286,-765.92654399,0.00024469,5]
[322087292,1712757038296,-154.92253873,0.00024469,2]
[322087294,1712757038305,-300.0,0.00024471,2]
[322087296,1712757038315,-300.0,0.00024471,2]
[322087298,1712757038324,-156.94794875,0.00024545,2]
[322087300,1712757038333,-200.0,0.00024658,2]
[322087302,1712757038342,-380.0,0.00024985,2]
[322087304,1712757038351,-154.92253873,0.00025,2]
[322087306,1712757038360,-156.94794864,0.00025126,2]
[322087308,1712757038369,-156.94794864,0.00025707,2]
[322087310,1712757038379,-758.24914228,0.00026194,2]
[322087312,1712757038389,-156.94794864,0.00026287,2]
[322087315,1712757038402,-300.0,0.000265,12]
[322087316,1712757038414,-420.0,0.00026525,2]
[322087318,1712757038427,-156.94794864,0.00026868,2]
[322087320,1712757038438,-420.0,0.00026918,2]
[322087322,1712757038449,-505.64234481,0.00026999,2]
[322087324,1712757038462,-502.92175782,0.00026999,2]
[322087327,1712757038477,-7847.12771536,0.00027,2]
[322087329,1712757038493,-44594.74704499,0.00027,2]
[322087331,1712757038505,-167.201687,0.00027397,2]
[322087333,1712757038516,-192.696713,0.00027397,2]
[322087335,1712757038527,-217.550589,0.00027397,2]
[322087337,1712757038537,-166.666666,0.00027397,2]
[322087339,1712757038548,-595.85715324,0.000274,3]
[322087341,1712757038558,-156.94794864,0.00027449,2]
[322087343,1712757038569,-19511.51418901,0.000275,2]
[322087344,1712757038579,-2000.0,0.000275,2]
[322087346,1712757038589,-799.54878138,0.000275,17]
[322087348,1712757038600,-626.91245711,0.00027504,2]
[322087350,1712757038611,-542.32449507,0.0002751,2]
[322087788,1712757043194,-1457.67550493,0.0002751,2]
[322087790,1712757043203,-2000.0,0.0002752,2]
[322087792,1712757043212,-1439.67886818,0.0002752,2]
[322087794,1712757043221,-2000.0,0.0002753,2]
[322087796,1712757043234,-1404.41004595,0.0002754,2]
[322087798,1712757043246,-595.58995405,0.0002754,2]
[322087800,1712757043255,-2000.0,0.0002755,2]
[322087802,1712757043266,-2000.0,0.0002756,2]
[322087804,1712757043276,-2000.0,0.0002757,2]
[322087806,1712757043286,-2000.0,0.0002758,2]
[322087808,1712757043295,-2000.0,0.0002759,2]
[322087810,1712757043304,-2000.0,0.000276,2]
[322087812,1712757043313,-2000.0,0.0002761,2]
[322087814,1712757043323,-2000.0,0.0002762,2]
[322087816,1712757043332,-503.53892806,0.00027629,2]
[322087818,1712757043341,-156.231761,0.00027629,2]
[322087821,1712757043351,-500.0,0.00027629,2]
[322087823,1712757043360,-500.0,0.00027629,2]
[322087824,1712757043369,-500.03201917,0.00027629,2]
[322087826,1712757043377,-500.0,0.00027629,2]
[322087828,1712757043386,-637.56700667,0.00027629,2]
[322087830,1712757043395,-500.0,0.00027629,2]
[322087832,1712757043404,-500.0,0.00027629,2]
[322087834,1712757043413,-500.0,0.00027629,2]
[322087836,1712757043423,-500.0,0.00027629,2]
[322087838,1712757043432,-500.0,0.00027629,2]
[322087840,1712757043444,-500.0,0.00027629,2]
[322087842,1712757043453,-500.0,0.00027629,2]
[322087844,1712757043463,-500.0,0.00027629,2]
[322087846,1712757043477,-500.0,0.00027629,2]
[322087848,1712757043487,-500.0,0.00027629,2]
[322087850,1712757043497,-500.0,0.00027629,2]
[322087852,1712757043506,-2000.0,0.0002763,2]
[322087854,1712757043516,-2000.0,0.0002764,2]
[322087856,1712757043524,-2000.0,0.0002765,2]
[322087858,1712757043533,-2000.0,0.0002766,2]
[322087860,1712757043542,-2000.0,0.0002767,2]
[322087862,1712757043551,-2000.0,0.0002768,2]
[322087864,1712757043560,-2000.0,0.0002769,2]
[322087866,1712757043569,-3556.134838,0.000277,2]
[322087868,1712757043578,-300.0,0.00028,13]
[322087870,1712757043587,-156.94794864,0.0002803,2]
[322087872,1712757043596,-166.666666,0.00028038,2]
[322087874,1712757043604,-156.94794864,0.00028611,2]
[322087876,1712757043613,-595.85715319,0.00028614,4]
[322087878,1712757043622,-166.666666,0.00028679,2]
[322087880,1712757043631,-587.0,0.00028751,2]
[322087882,1712757043641,-620.34562286,0.00028879,2]
[322087884,1712757043651,-306.25358249,0.00029,2]
[322087886,1712757043661,-351.0,0.00029,2]
[322087888,1712757043672,-351.0,0.00029041,2]
[322087890,1712757043682,-1439.67886816,0.00029075,2]
[322087892,1712757043691,-156.94794864,0.00029192,2]
[322087894,1712757043701,-157.3832617,0.00029294,5]
[322087896,1712757043710,-166.666666,0.00029321,2]
[322087898,1712757043718,-300.0,0.000295,14]
[322087900,1712757043731,-587.0,0.0002961,2]
[322087902,1712757043740,-156.94794864,0.00029772,2]
[322087904,1712757043750,-595.85715319,0.00029828,4]
[322087906,1712757043759,-166.666666,0.00029962,2]
[322087908,1712757043768,-342.35654878,0.0003,2]
[322087910,1712757043777,-1211.6365575,0.0003,2]
[322087912,1712757043786,-221.0,0.0003,2]
[322087914,1712757043795,-154.92253873,0.0003,4]
[322087916,1712757043803,-154.92253873,0.00030134,4]
[322087918,1712757043813,-500.0,0.00030136,2]
[322087920,1712757043823,-500.0,0.00030191,2]
[322087922,1712757043832,-351.0,0.00030205,2]
[322087925,1712757043842,-500.0,0.00030246,2]
[322087927,1712757043852,-500.0,0.00030301,2]
[322087929,1712757043861,-620.01728114,0.00030323,2]
[322087931,1712757043870,-156.94794864,0.00030353,2]
[322087933,1712757043883,-500.0,0.00030356,2]
[322087935,1712757043894,-500.0,0.0003041,2]
[322087937,1712757043903,-500.0,0.00030465,2]
[322087939,1712757043912,-1484.62215418,0.00030518,4]
[322087941,1712757043922,-500.0,0.0003052,2]
[322087943,1712757043931,-500.0,0.00030575,2]
[322087944,1712757043942,-166.666666,0.00030603,2]
[322087946,1712757043951,-1439.67886816,0.00030629,2]
[322087948,1712757043960,-500.0,0.0003063,2]
[322087950,1712757043970,-500.0,0.00030684,2]
[322087952,1712757043982,-500.0,0.00030739,2]
[322087954,1712757043992,-500.0,0.00030794,2]
[322087956,1712757044001,-500.0,0.00030849,2]
[322087958,1712757044010,-500.0,0.00030904,2]
[322087960,1712757044019,-156.94794864,0.00030934,2]
[322087962,1712757044031,-500.0,0.00030958,2]
[322087964,1712757044041,-500.0,0.00031013,2]
[322087966,1712757044053,-595.85715319,0.00031042,5]
[322087968,1712757044063,-160.16123696,0.00031068,2]
[322087970,1712757044073,-823.0,0.00031163,2]
[322087972,1712757044084,-151.0,0.00031285,2]
[322087974,1712757044094,-5544.68785386,0.00031402,4]
[322087976,1712757044104,-2000.0,0.000315,2]
[322087986,1712757044200,-1772.7449932,0.000315,4]
[322087988,1712757044210,-2000.0,0.0003151,2]
[322087990,1712757044219,-156.94794864,0.00031515,2]
[322087992,1712757044236,-2000.0,0.0003152,2]
[322087994,1712757044247,-2000.0,0.0003153,2]
[322087996,1712757044257,-2000.0,0.0003154,2]
[322087998,1712757044267,-2000.0,0.0003155,2]
[322088000,1712757044278,-2000.0,0.0003156,2]
[322088002,1712757044288,-2000.0,0.0003157,2]
[322088004,1712757044297,-2000.0,0.0003158,2]
[322088006,1712757044307,-2000.0,0.0003159,2]
[322088008,1712757044316,-2000.0,0.000316,2]
[322088010,1712757044325,-2000.0,0.0003161,2]
[322088012,1712757044334,-2000.0,0.0003162,2]
[322088013,1712757044343,-2000.0,0.0003163,2]
[322088015,1712757044352,-2000.0,0.0003164,2]
[322088017,1712757044361,-2000.0,0.0003165,2]
[322088019,1712757044370,-2000.0,0.0003166,2]
[322088021,1712757044380,-2000.0,0.0003167,2]
[322088023,1712757044389,-2000.0,0.0003168,2]
[322088025,1712757044398,-2833.87641,0.0003169,2]
[322088027,1712757044407,-358.0,0.00031716,2]
[322088029,1712757044417,-2000.0,0.000318,30]
[322088031,1712757044426,-1211.6365575,0.000318,2]
[322088033,1712757044435,-2000.0,0.0003181,30]
[322088035,1712757044444,-2000.0,0.0003182,30]
[322088037,1712757044453,-2000.0,0.0003183,30]
[322088039,1712757044462,-620.00086406,0.00031839,2]
[322088041,1712757044473,-2000.0,0.0003184,30]
[322088043,1712757044492,-3611.292136,0.0003185,30]
[322088045,1712757044502,-804.65997741,0.000319,2]
[322088047,1712757044511,-540.67,0.00032,2]
[322088049,1712757044520,-190.82879754,0.00032,4]
[322088051,1712757044529,-1993.0,0.00032,2]
[322088053,1712757044538,-156.94794864,0.00032096,2]
[322088055,1712757044548,-1439.67886816,0.00032184,2]
[322088057,1712757044557,-595.85715319,0.00032255,5]
[322088059,1712757044567,-18106.4607,0.00032351,30]
[322088061,1712757044576,-166.90936457,0.00032451,2]
[322088063,1712757044585,-823.0,0.00032571,2]
[322088065,1712757044594,-156.94794864,0.00032677,2]
[322088067,1712757044604,-749.71333205,0.00032792,4]
[322088069,1712757044614,-400.0,0.00032877,2]
[322088071,1712757044623,-221.0,0.00033,2]
[322088073,1712757044632,-221.0,0.00033,2]
[322088075,1712757044641,-2000.0,0.00033013,2]
[322088077,1712757044650,-3120.14442879,0.00033113,4]
[322088079,1712757044659,-181.783658,0.00033165,2]
[322088081,1712757044668,-408.689193,0.00033165,2]
[322088083,1712757044678,-341.090957,0.00033165,2]
[322088085,1712757044687,-217.550589,0.00033165,2]
[322088087,1712757044697,-156.94794864,0.00033257,2]
[322088089,1712757044706,-223.15608638,0.00033284,4]
[322088091,1712757044715,-1919.21518065,0.00033418,4]
[322088093,1712757044730,-1227.53516352,0.00033419,4]
[322088095,1712757044739,-620.0000432,0.00033431,2]
[322088097,1712757044749,-155.77365779,0.00033447,4]
[322088099,1712757044758,-473.2366857,0.00033447,4]
[322088101,1712757044767,-305.92758867,0.00033447,4]
[322088103,1712757044776,-201.13328177,0.00033447,4]
[322088105,1712757044785,-303.32143399,0.00033447,4]
[322088107,1712757044795,-393.91339462,0.00033447,4]
[322088109,1712757044804,-156.08474154,0.00033447,4]
[322088111,1712757044813,-243.98537927,0.00033447,4]
[322088113,1712757044822,-275.95760327,0.00033447,4]
[322088115,1712757044830,-604.27444282,0.00033447,4]
[322088117,1712757044839,-155.27032593,0.00033447,4]
[322088119,1712757044848,-1585.48245161,0.00033447,4]
[322088121,1712757044858,-155.3597361,0.00033447,4]
[322088123,1712757044867,-155.18570602,0.00033447,4]
[322088125,1712757044877,-155.10304485,0.00033447,4]
[322088127,1712757044887,-172.29467282,0.00033447,4]
[322088129,1712757044896,-364.74168,0.00033447,4]
[322088130,1712757044905,-302.03683113,0.00033447,4]
[322088132,1712757044914,-694.67753415,0.00033447,4]
[322088134,1712757044926,-1541.1157895,0.00033448,2]
[322088136,1712757044935,-160.0,0.00033448,10]
[322088138,1712757044943,-160.0,0.00033448,10]
[322088141,1712757044954,-4575.17724046,0.00033448,4]
[322088142,1712757044963,-150.0,0.00033451,2]
[322088144,1712757044972,-595.85715319,0.00033469,6]
[322088146,1712757044984,-1211.6365575,0.000336,2]
[322088148,1712757044994,-153.0,0.00033625,2]
[322088150,1712757045003,-153.0,0.00033625,2]
[322088152,1712757045012,-153.0,0.00033625,2]
[322088154,1712757045021,-153.0,0.00033625,2]
[322088156,1712757045031,-153.0,0.00033625,2]
[322088158,1712757045040,-1439.67886816,0.00033738,2]
[322088160,1712757045048,-1152.0,0.00033779,2]
[322088162,1712757045057,-3609.644003,0.00033796,2]
[322088164,1712757045066,-2465.926017,0.00033796,2]
[322088166,1712757045075,-848.234785,0.00033796,2]
[322088168,1712757045083,-1643.932496,0.00033796,2]
[322088170,1712757045092,-9.8832936,0.00033796,2]
[322088183,1712757045210,-150.1331114,0.00033796,2]
[322088185,1712757045219,-199.92611,0.00033796,2]
[322088187,1712757045230,-309.87605268,0.00033828,4]
[322088189,1712757045239,-351.0,0.0003383,2]
[322088191,1712757045249,-156.94794864,0.00033838,2]
[322088193,1712757045257,-164.112294,0.00033844,2]
[322088195,1712757045266,-1000.0,0.00034,2]
[322088197,1712757045275,-464.76907436,0.00034,4]
[322088199,1712757045283,-23.89647296,0.00034,7]
[322088423,1712757048001,-153.0,0.00033625,2]
[322088425,1712757048011,-132.58964553,0.00034,7]
[322088427,1712757048022,-3090.19358259,0.00034,4]
[322088429,1712757048031,-16492.30630188,0.00034,60]
[322091581,1712757234629,14757.03659442,0.0002,2]
[322091582,1712757234653,1203.58171496,0.0002,2]
[322091583,1712757260678,2999.70533759,0.000125,2]
[322091622,1712757933109,-1493.8410274,0.00024997,2]
[322091623,1712757933131,-300.0,0.00024997,2]
[322091624,1712757933153,-207.01902229,0.00024997,2]
[322091625,1712758060216,804.65997741,0.000189,2]
[322091744,1712758238289,-158.55609735,0.00023898,2]
[322091745,1712758238298,-1493.8410274,0.00023898,2]
[322091747,1712758238308,-3786.47067088,0.00023899,2]
[322091748,1712758238322,-1312.66049814,0.00023899,2]
[322091965,1712758240383,-1890.57393255,0.00023899,2]
[322091967,1712758240393,-804.65997741,0.000239,2]
[322091969,1712758240404,-724.07031133,0.00025,2]
[322091973,1712758240414,-300.0,0.0002536,2]
[322091975,1712758240423,-300.0,0.0002536,2]
[322091977,1712758240432,-4971.78179755,0.00025361,2]
[322092028,1712758243370,-349.70540792,0.00025361,2]
[322092029,1712758243382,-3831.35985861,0.00025361,2]
[322092030,1712758243397,-10848.01225502,0.00025361,2]
[322092031,1712758243406,-199.8417185,0.00026138,2]
[322092032,1712758243416,-300.0,0.000265,12]
[322092033,1712758243426,-521.37500905,0.00026721,3]
[322092034,1712758243435,-620.34476097,0.00026821,2]
[322092035,1712758243445,-620.00172379,0.00026822,2]
[322092036,1712758243454,-1034.42406566,0.00027,2]
[322092073,1712758254102,154.92253873,0.000189,2]
[322092074,1712758254932,300.0,0.000189,2]
[322092075,1712758255158,237.14597222,0.00021576,2]
[322092076,1712758256718,256.23532869,0.00019,2]
[322092077,1712758257487,16051.09605823,0.000189,2]
[322092078,1712758262570,346.57817207,0.000189,2]
[322092079,1712758312580,154.92253873,0.000189,2]
[322092080,1712758312616,691.04683546,0.000189,2]
[322092081,1712758313638,19139.99712765,0.000189,2]
[322092082,1712758317922,6910.06050289,0.000189,2]
[322092083,1712758317945,9141.03555534,0.000189,2]
[322092084,1712758330623,691.04683546,0.000189,2]
[322092085,1712758333645,19139.99712765,0.000189,2]
[322092086,1712758333940,16051.09605823,0.000189,2]
[322092087,1712758334643,164.02986577,0.000189,2]
[322092088,1712758348634,457.05002993,0.000189,2]
[322092089,1712758353151,1941.7278895,0.0002185,2]
[322092090,1712758355653,2414.01663812,0.000189,2]
[322092091,1712758355691,10031.63063213,0.000189,2]
[322092092,1712758355943,16051.09605823,0.000189,2]
[322092093,1712758379946,16051.09605823,0.000189,2]
[322092094,1712758380556,173.476192,0.00021052,2]
[322092104,1712758399990,12692.70105941,0.000189,2]
[322092105,1712758400020,230.76485231,0.000189,2]
[322092106,1712758440677,300.0,0.00021001,2]
[322092107,1712758442521,300.0,0.00021001,2]
[322092108,1712758443279,24436.0900962,0.00020005,2]
[322092109,1712758444634,562.9343756,0.00021,2]
[322092110,1712758445510,2616.74714193,0.00021,2]
[322092111,1712758445783,570.88368732,0.00021,2]
[322092112,1712758448141,1486.14046783,0.00021,2]
[322092113,1712758448849,207.29860552,0.00021,2]
[322092114,1712758452790,3137.59303007,0.00021,2]
[322092115,1712758454223,364.74168,0.00021,2]
[322092116,1712758454566,887.0189653,0.00021,2]
[322092117,1712758454637,154.93802479,0.00021,2]
[322092118,1712758467430,215.82383049,0.00021,2]
[322092119,1712758468292,154.93802479,0.00021,2]
[322092120,1712758470661,518.44015583,0.00021,2]
[322092121,1712758474635,159.98356703,0.00019951,2]
[322092122,1712758480233,1493.8410274,0.00021,2]
[322092123,1712758482273,2445.77675193,0.00021,2]
[322092124,1712758482917,687.372286,0.00021,2]
[322092125,1712758485474,11369.33866938,0.00021,2]
[322092126,1712758485920,548.90126628,0.00021,2]
[322092127,1712758486315,22751.29699705,0.00021,2]
[322092128,1712758486942,435.85041536,0.00021,2]
[322092129,1712758488746,364.74168,0.00021,2]
[322092130,1712758489022,200.0,0.00021,2]
[322092131,1712758491774,470.13868753,0.00021,2]
[322092132,1712758492033,154.93802479,0.00021,2]
[322092133,1712758492103,181.0843021,0.00021,2]
[322092134,1712758493106,936.36329074,0.00021,2]
[322092135,1712758493308,1617.59849486,0.00021,2]
[322092136,1712758493687,3736.78008316,0.00021,2]
[322092137,1712758495370,2936.39183255,0.00021,2]
[322092138,1712758495993,5567.94409063,0.00021,2]
[322092139,1712758499110,283.42171032,0.00021,2]
[322092140,1712758500432,1854.027435,0.00021,2]
[322092141,1712758500728,300.0,0.00021,2]
[322092142,1712758501031,200.0,0.00021,2]
[322092143,1712758501740,300.0,0.00021,2]
[322092144,1712758501912,48758.75960257,0.00021,2]
[322092145,1712758502354,432.92111657,0.00021,2]
[322092149,1712758505452,300.0,0.00021,2]
[322092155,1712758506841,925.12169132,0.00021,2]
[322092164,1712758521035,200.0,0.00021,2]
[322092165,1712758539058,200.0,0.00021,2]
[322092166,1712758560626,300.0,0.00021,2]
[322092167,1712758561036,200.0,0.00021,2]
[322092168,1712758561892,300.0,0.00021,2]
[322092169,1712758579045,200.0,0.00021,2]
[322092170,1712758599043,200.0,0.00021,2]
[322092171,1712758620770,300.0,0.00021,2]
[322092172,1712758621044,200.0,0.00021,2]
[322092173,1712758622554,300.0,0.00021,2]
[322092177,1712758643052,200.0,0.00021,2]
[322092178,1712758655017,211.46315052,0.00021,2]
[322092179,1712758659151,1087.50404334,0.00021,2]
[322092180,1712758659479,154.92253873,0.00021,2]
[322092181,1712758661259,200.0,0.00021,2]
[322092182,1712758661608,524.8635464,0.00021,2]
[322092183,1712758664110,156.60500254,0.00021,2]
[322092184,1712758669099,193.05887127,0.00021,2]
[322092185,1712758669746,1671.05436507,0.00021,2]
[322092186,1712758671246,154.92253873,0.00021,2]
[322092187,1712758679834,9421.48697164,0.00021,2]
[322092188,1712758680743,300.0,0.00021,2]
[322092189,1712758681055,200.0,0.00021,2]
[322092190,1712758686494,300.0,0.00021,2]
[322092191,1712758701033,887.0189653,0.00021,2]
[322092192,1712758703691,562.9343756,0.00021,2]
[322092193,1712758703903,207.29860552,0.00021,2]
[322092194,1712758705191,1486.14046783,0.00021,2]
[322092195,1712758706817,570.88368732,0.00021,2]
[322092196,1712758707061,200.0,0.00021,2]
[322092197,1712758710450,2616.74714193,0.00021,2]
[322092198,1712758716555,215.82383049,0.00021,2]
[322092199,1712758719592,1301.0703961,0.00020783,2]
[322092200,1712758727058,200.0,0.00021,2]
[322092201,1712758731327,154.92253873,0.00021,2]
[322092202,1712758736097,181.0843021,0.00021,2]
[322092203,1712758738990,435.85041536,0.00021,2]
[322092204,1712758740049,154.92253873,0.00021,2]
[322092205,1712758740773,300.0,0.00021,2]
[322092206,1712758742250,300.0,0.00021,2]
[322092207,1712758742284,1493.8410274,0.00021,2]
[322092208,1712758743105,200.0,0.00021,2]
[322092209,1712758748337,22751.29699705,0.00021,2]
[322092210,1712758749416,2936.39183255,0.00021,2]
[322092215,1712758751800,470.13868753,0.00021,2]
[322092220,1712758760489,1854.027435,0.00021,2]
[322092221,1712758761336,1617.59849486,0.00021,2]
[322092222,1712758768895,925.12169132,0.00021,2]
[322092223,1712758773155,283.42171032,0.00021,2]
[322092224,1712758778579,548.90126628,0.00021,2]
[322092225,1712758788531,2342.707352,0.00020527,2]
[322092226,1712758794389,364.74168,0.00021,2]
[322092227,1712758800765,300.0,0.00021,2]
[322092228,1712758801353,300.0,0.00021,2]
[322092230,1712758818881,225.55190173,0.00021,2]
[322092231,1712758836133,936.36329074,0.00021,2]
[322092232,1712758856544,3736.78008316,0.00021,2]
[322092233,1712758860658,300.0,0.00021,2]
[322092234,1712758861450,300.0,0.00021,2]
[322092235,1712758920773,300.0,0.00021,2]
[322092236,1712758921351,300.0,0.00021,2]
[322092237,1712758957816,193.05887127,0.00021,2]
[322092238,1712758959137,936.36329074,0.00021,2]
[322092239,1712758964597,4151.48967526,0.000189,2]
[322092240,1712758969694,1087.50404334,0.00021,2]
[322092241,1712758979980,548.90126628,0.00021,2]
[322092242,1712758980970,300.0,0.00021,2]
[322092243,1712758982015,300.0,0.00021,2]
[322092244,1712758982547,215.82383049,0.00021,2]
[322092245,1712758985575,211.46315052,0.00021,2]
[322092246,1712758986025,154.93802479,0.00021,2]
[322092253,1712758992380,9421.48697164,0.00021,2]
[322092254,1712758998191,524.8635464,0.00021,2]
[322092255,1712759005786,154.92253873,0.00021,2]
[322092256,1712759036754,3000.0,0.00020436,2]
[322092257,1712759040668,300.0,0.00021,2]
[322092258,1712759041373,887.0189653,0.00021,2]
[322092259,1712759043084,300.0,0.00021,2]
[322092260,1712759048440,364.74168,0.00021,2]
[322092261,1712759051883,250.0,0.00020452,2]
[322092262,1712759054534,154.92253873,0.00021,2]
[322092263,1712759054979,1493.8410274,0.00021,2]
[322092264,1712759062931,225.55190173,0.00021,2]
[322092265,1712759064078,211.46315052,0.00021,2]
[322092266,1712759064484,548.90126628,0.00021,2]
[322092267,1712759068447,470.13868753,0.00021,2]
[322092269,1712759100734,300.0,0.00021,2]
[322092270,1712759101573,300.0,0.00021,2]
[322092271,1712759122674,17687.6381471,0.00020352,2]
[322092272,1712759134996,548.90126628,0.00021,2]
[322092273,1712759139452,225.55190173,0.00021,2]
[322092274,1712759146936,364.74168,0.00021,2]
[322092275,1712759155180,-2295.43372737,0.00021001,2]
[322092276,1712759155199,-155.22489452,0.00021001,2]
[322092277,1712759155219,-1227.53516352,0.00021001,2]
[322092278,1712759155242,-1067.2301405,0.00021191,2]
[322092279,1712759155262,-205.64170032,0.00021331,2]
[322092280,1712759155282,-649.18858199,0.00021331,2]
[322092281,1712759155303,-1348.82515565,0.00021331,2]
[322092282,1712759155323,-155.1394086,0.00021331,2]
[322092283,1712759155342,-340.33934205,0.00021331,2]
[322092284,1712759155362,-616.79703878,0.00021331,2]
[322092285,1712759155382,-548.90126628,0.00021331,2]
[322092286,1712759155402,-884.28097141,0.00021332,2]
[322092287,1712759155422,-24900.0,0.00021333,2]
[322092288,1712759155446,-200.0,0.00021412,2]
[322092289,1712759155466,-1483.096635,0.00021639,2]